fUSD/lending_fUSD_20260602
["ID","MTS","AMOUNT","RATE_DAILY","PERIOD"]
[423757582,1780392647000,-500.0,0.00014999,11]
[423757583,1780392647000,-500.0,0.00014999,12]
[423757588,1780392647000,-500.0,0.00014999,17]
[423757584,1780392647000,-500.0,0.00014999,13]
[423757589,1780392647000,-500.0,0.00014999,18]
[423757590,1780392647000,-500.0,0.00014999,19]
[423757591,1780392647000,-500.0,0.00014999,20]
[423757586,1780392647000,-500.0,0.00014999,15]
[423757585,1780392647000,-500.0,0.00014999,14]
[423757593,1780392647000,-500.0,0.00014999,21]
[423757592,1780392647000,-500.0,0.00014999,21]
[423757595,1780392647000,-500.0,0.00014999,21]
[423757594,1780392647000,-500.0,0.00014999,21]
[423757596,1780392647000,-500.0,0.00014999,21]
[423757598,1780392647000,-500.0,0.00014999,21]
[423757601,1780392647000,-500.0,0.00014999,21]
[423757597,1780392647000,-500.0,0.00014999,21]
[423757600,1780392647000,-500.0,0.00014999,21]
[423757602,1780392647000,-500.0,0.00014999,21]
[423757629,1780392647000,-500.0,0.00014999,2]
[423757630,1780392647000,-500.0,0.00014999,2]
[423757626,1780392647000,-500.0,0.00014999,2]
[423757658,1780392647000,-600.41,0.00014999,2]
[423757659,1780392647000,-600.41,0.00014999,2]
[423757655,1780392647000,-600.41,0.00014999,2]
[423757663,1780392647000,-600.41,0.00014999,2]
[423757661,1780392647000,-600.41,0.00014999,2]
[423757664,1780392647000,-600.41,0.00014999,2]
[423757665,1780392647000,-600.41,0.00014999,2]
[423757669,1780392647000,-1500.0,0.00015,2]
[423757671,1780392647000,-400.0,0.00015,3]
[423757667,1780392647000,-600.56530613,0.00014999,2]
[423757662,1780392647000,-600.41,0.00014999,2]
[423757668,1780392647000,-153.0,0.00015,5]
[423757670,1780392647000,-1500.0,0.00015,2]
[423757672,1780392647000,-224.395766,0.00015,3]
[423757666,1780392647000,-600.41,0.00014999,2]
[423757673,1780392647000,-5624710.68773031,0.00015,2]
[423757674,1780392647000,-2079.75528447,0.00015,2]
[423757676,1780392647000,-554990.48813444,0.00015,2]
[423757675,1780392647000,-8095.5231349,0.00015,2]
[423757679,1780392647000,-1124.99478989,0.00015,2]
[423757677,1780392647000,-6942.0,0.00015,2]
[423757678,1780392647000,-1490.0,0.00015,2]
[423757632,1780392647000,-500.0,0.00014999,2]
[423757657,1780392647000,-600.41,0.00014999,2]
[423757656,1780392647000,-600.41,0.00014999,2]
[423757648,1780392647000,-500.0,0.00014999,2]
[423757652,1780392647000,-600.41,0.00014999,2]
[423757633,1780392647000,-409.35882975,0.00014999,2]
[423757627,1780392647000,-500.0,0.00014999,2]
[423757631,1780392647000,-500.0,0.00014999,2]
[423757628,1780392647000,-500.0,0.00014999,2]
[423757635,1780392647000,-500.0,0.00014999,2]
[423757637,1780392647000,-500.0,0.00014999,2]
[423757641,1780392647000,-500.0,0.00014999,2]
[423757642,1780392647000,-500.0,0.00014999,2]
[423757639,1780392647000,-500.0,0.00014999,2]
[423757640,1780392647000,-500.0,0.00014999,2]
[423757654,1780392647000,-600.41,0.00014999,2]
[423757636,1780392647000,-500.0,0.00014999,2]
[423757643,1780392647000,-500.0,0.00014999,2]
[423757649,1780392647000,-500.0,0.00014999,2]
[423757653,1780392647000,-600.41,0.00014999,2]
[423757660,1780392647000,-600.41,0.00014999,2]
[423757651,1780392647000,-273.294766,0.00014999,2]
[423757638,1780392647000,-500.0,0.00014999,2]
[423757645,1780392647000,-500.0,0.00014999,2]
[423757647,1780392647000,-500.0,0.00014999,2]
[423757646,1780392647000,-500.0,0.00014999,2]
[423757644,1780392647000,-500.0,0.00014999,2]
[423757650,1780392647000,-500.0,0.00014999,2]
[423757680,1780392648000,-11697.5601719,0.00015,2]
[423757682,1780392648000,-1166.99686188,0.00015,2]
[423757683,1780392648000,-393103.5935287,0.00015,2]
[423757681,1780392648000,-572.16169396,0.00015,2]
[423757685,1780392648000,-417.445,0.00013855,2]
[423757686,1780392648000,-385.5696981,0.00013855,2]
[423757687,1780392648000,-280.92099113,0.00013855,2]
[423757684,1780392648000,-1924.52104598,0.00013855,2]
[423757695,1780392945000,-152.0,0.00021015,120]
[423757696,1780392945000,-161.0,0.00021315,120]
[423757697,1780392945000,-161.0,0.00022381,120]
[423757699,1780392945000,-161.0,0.00024675,120]
[423757698,1780392945000,-161.0,0.000235,120]
[423757700,1780392945000,-211.42637326,0.00025504,120]
[423757702,1780392945000,-433.22781836,0.00025885,120]
[423757701,1780392945000,-152.77220013,0.00025504,120]
[423757704,1780392945000,-161.0,0.00025909,120]
[423757706,1780392945000,-216.61390913,0.00026099,120]
[423757703,1780392945000,-206.15082982,0.00025894,120]
[423757709,1780392945000,-207.0,0.00029,120]
[423757711,1780392945000,-4993109.43585694,0.000297,120]
[423757710,1780392945000,-3048.0,0.00029,120]
[423757708,1780392945000,-457.79,0.00028767,120]
[423757707,1780392945000,-567.355194,0.0002747,120]
[423757705,1780392945000,-433.22781836,0.00025992,120]
[423757714,1780392997000,-150.0,0.00011199,2]
[423757717,1780393052000,-422.24501201,0.00011545,2]
[423757718,1780393075000,150.0,8.1e-05,2]
[423757719,1780393085000,150.0,8.1e-05,2]
[423757720,1780393105000,-152.0,0.00011628,7]
[423757721,1780393157000,-166.27423638,0.00011644,2]
[423757724,1780393212000,-164.48382561,0.00011645,7]
[423757726,1780393214000,-560.53651874,0.00011742,2]
[423757734,1780393214000,-1000.0,0.00012757,2]
[423757727,1780393214000,-501.69742277,0.00011742,2]
[423757729,1780393214000,-481.24999893,0.00011742,2]
[423757730,1780393214000,-508.94501262,0.00011742,2]
[423757728,1780393214000,-500.0,0.00011742,2]
[423757731,1780393214000,-196.75034628,0.00011802,2]
[423757735,1780393214000,-1680.0,0.00012915,2]
[423757732,1780393214000,-215.67541492,0.00011812,2]
[423757733,1780393214000,-2000.0,0.0001185,2]
[423757725,1780393214000,-1200.0,0.00011741,2]
[423757736,1780393214000,-150.0,0.00012992,2]
[423757739,1780393214000,-200.0,0.00013131,2]
[423757738,1780393214000,-154.78,0.00013116,2]
[423757747,1780393214000,-500.0,0.00013698,2]
[423757742,1780393214000,-227.3322607,0.0001333,2]
[423757746,1780393214000,-500.0,0.00013698,2]
[423757743,1780393214000,-2000.0,0.00013331,2]
[423757744,1780393214000,-1100.0,0.000134,2]
[423757741,1780393214000,-475.56620884,0.0001333,2]
[423757740,1780393214000,-306.52621463,0.0001333,2]
[423757737,1780393214000,-1123.99999999,0.00012993,2]
[423757745,1780393214000,-1124.0,0.00013676,2]
[423757752,1780393215000,-975.3,0.00013752,2]
[423757751,1780393215000,-1591.0,0.0001372,2]
[423757748,1780393215000,-500.0,0.00013698,2]
[423757750,1780393215000,-425.17407332,0.00013699,2]
[423757749,1780393215000,-166.66,0.00013699,2]
[423757753,1780393215000,-166.66,0.00013836,2]
[423757754,1780393215000,-3488.68,0.00013909,2]
[423757760,1780393215000,-197.12313119,0.0001416,2]
[423757756,1780393215000,-2025.63460277,0.00014083,2]
[423757757,1780393215000,-166.66,0.0001411,2]
[423757758,1780393215000,-162.23342167,0.00014147,2]
[423757759,1780393215000,-150.0,0.00014147,2]
[423757761,1780393215000,-22221.07,0.00014193,2]
[423757762,1780393215000,-150.0,0.000142,2]
[423757763,1780393215000,-740.08537263,0.00014203,2]
[423757755,1780393215000,-166.66,0.00013973,2]
[423757765,1780393225000,-49840.0,0.00014203,2]
[423757764,1780393225000,-160.0,0.00011812,2]
[423757821,1780393832000,-1200.0,0.00013696,2]
[423757818,1780393832000,-150.0,0.00013488,2]
[423757819,1780393832000,-150.0,0.00013488,2]
[423757822,1780393832000,-500.0,0.00013698,2]
[423757820,1780393832000,-150.0,0.00013488,2]
[423757827,1780393832000,-215.67541492,0.00013749,2]
[423757825,1780393832000,-500.0,0.00013698,2]
[423757829,1780393832000,-233.56020436,0.0001377,7]
[423757828,1780393832000,-160.0,0.00013749,2]
[423757814,1780393832000,-184.64,0.0001331,2]
[423757815,1780393832000,-167.95,0.0001346,2]
[423757813,1780393832000,-196.75034628,0.00013147,2]
[423757823,1780393832000,-500.0,0.00013698,2]
[423757809,1780393832000,-152.0,0.00012981,7]
[423757808,1780393832000,-150.0,0.00012119,2]
[423757807,1780393832000,-200.0,0.00012,2]
[423757810,1780393832000,-443.84,0.00013011,2]
[423757811,1780393832000,-157.77,0.00013108,2]
[423757812,1780393832000,-876.86,0.00013123,2]
[423757806,1780393832000,-157.9,0.00010708,2]
[423757817,1780393832000,-150.0,0.00013488,2]
[423757824,1780393832000,-500.0,0.00013698,2]
[423757816,1780393832000,-150.0,0.00013488,2]
[423757831,1780393832000,-214.56835024,0.00013942,2]
[423757826,1780393832000,-212.74241152,0.00013701,2]
[423757850,1780393832000,-599.30213,0.00014203,2]
[423757851,1780393832000,-673.90711308,0.00014203,2]
[423757846,1780393832000,-500.0,0.00014202,2]
[423757847,1780393832000,-500.0,0.00014202,2]
[423757848,1780393832000,-500.0,0.00014202,2]
[423757844,1780393832000,-150.57218935,0.000142,2]
[423757845,1780393832000,-150.0,0.00014202,2]
[423757842,1780393832000,-150.0,0.000142,2]
[423757843,1780393832000,-962.456,0.000142,2]
[423757849,1780393832000,-72797.01074576,0.00014203,2]
[423757838,1780393832000,-2344.0,0.0001404,2]
[423757837,1780393832000,-1591.0,0.0001404,2]
[423757832,1780393832000,-332.89634618,0.00013942,2]
[423757833,1780393832000,-8797.2845673,0.00013943,2]
[423757841,1780393832000,-501.09197696,0.00014173,2]
[423757830,1780393832000,-159.13258249,0.00013942,2]
[423757835,1780393832000,-200.0,0.00014,2]
[423757839,1780393832000,-162.23342167,0.00014147,2]
[423757840,1780393832000,-154.26069977,0.00014147,2]
[423757834,1780393832000,-1536.5064999,0.00013943,2]
[423757836,1780393832000,-250.0,0.00014,2]
[423757852,1780393833000,-342.30519296,0.00014203,2]
[423757853,1780393833000,-1509.42632579,0.00014203,2]
[423757856,1780393833000,-3196.4,0.00014203,2]
[423757855,1780393833000,-313.34184775,0.00014203,2]
[423757854,1780393833000,-1201.70384938,0.00014203,2]
[423757871,1780393838000,-500.0,0.00014203,2]
[423757870,1780393838000,-7521.34367539,0.00014203,2]
[423757884,1780393840000,-12038.09915594,0.00014203,2]
[423757883,1780393840000,-634.53,0.00014203,2]
[423757881,1780393840000,-250.0,0.00013354,2]
[423757882,1780393840000,-265.25614307,0.00014203,2]
[423757885,1780393840000,-7024.12444448,0.00014203,2]
[423757899,1780393843000,-106692.43013096,0.00014203,2]
[423757897,1780393843000,-1245.61888089,0.00014203,2]
[423757895,1780393843000,-1046.4729285,0.00013919,2]
[423757896,1780393843000,-442.08111522,0.00014203,2]
[423757898,1780393843000,-3985.0527767,0.00014203,2]
[423757900,1780393843000,-200.17265647,0.00014207,2]
[423757903,1780393843000,-151.0,0.00014247,2]
[423757904,1780393843000,-1500.0,0.00014247,2]
[423757902,1780393843000,-151.0,0.00014247,2]
[423757901,1780393843000,-166.66,0.00014247,2]
[423757907,1780393843000,-365059.59926106,0.0001425,2]
[423757908,1780393843000,-2598.5998726,0.0001425,2]
[423757906,1780393843000,-500.0,0.00014249,2]
[423757905,1780393843000,-250.0,0.00014247,2]
[423757920,1780393845000,-1107.11662362,0.00013919,2]
[423757919,1780393845000,-1078.09117255,0.00013919,2]
[423757922,1780393845000,-653.74439782,0.0001425,2]
[423757921,1780393845000,-993.88044268,0.0001425,2]
[423757928,1780393860000,433.0893849,0.0001,2]
[423757934,1780394488000,150.0,0.00010387,2]
[423757951,1780395032000,-167.95,0.00012595,2]
[423757947,1780395032000,-422.24501201,0.00011679,2]
[423757946,1780395032000,-164.48382561,0.00010708,7]
[423757949,1780395032000,-201.92,0.00012539,2]
[423757950,1780395032000,-196.75034628,0.00012558,2]
[423757952,1780395032000,-1498.97,0.00012629,2]
[423757948,1780395032000,-172.81,0.00011934,2]
[423757954,1780395032000,-812.75,0.00012661,2]
[423757956,1780395032000,-1000.0,0.00012676,2]
[423757957,1780395032000,-286.42673877,0.00012676,2]
[423757958,1780395032000,-277.465,0.00012676,2]
[423757953,1780395032000,-150.0,0.00012637,2]
[423757959,1780395032000,-959.58057949,0.00012676,2]
[423757955,1780395032000,-1200.0,0.00012675,2]
[423758004,1780395041000,-1014.35270945,0.00013641,2]
[423758007,1780395041000,-200.0,0.00013699,2]
[423758002,1780395041000,-1017.21892617,0.00013641,2]
[423758001,1780395041000,-1072.94342761,0.00013641,2]
[423757999,1780395041000,-1059.7949872,0.00013641,2]
[423758005,1780395041000,-1115.39194937,0.00013641,2]
[423758010,1780395041000,-166.66,0.00013836,2]
[423758009,1780395041000,-1320.0,0.0001372,2]
[423758003,1780395041000,-1076.84451948,0.00013641,2]
[423758006,1780395041000,-215.67541492,0.00013664,2]
[423758012,1780395041000,-1082.59736288,0.00013919,2]
[423758013,1780395041000,-1066.13755334,0.00013919,2]
[423758014,1780395041000,-1124.71254879,0.00013919,2]
[423758015,1780395041000,-1038.37449729,0.00013919,2]
[423758016,1780395041000,-500.0,0.00013933,2]
[423758018,1780395041000,-500.0,0.00013933,2]
[423758019,1780395041000,-500.0,0.00013933,2]
[423758017,1780395041000,-500.0,0.00013933,2]
[423758020,1780395041000,-500.0,0.00013933,2]
[423758026,1780395041000,-500.0,0.00013933,2]
[423758008,1780395041000,-166.66,0.00013699,2]
[423758011,1780395041000,-578.28957408,0.00013919,2]
[423758000,1780395041000,-1086.14251296,0.00013641,2]
[423757985,1780395041000,-24999.99,0.00012893,2]
[423757998,1780395041000,-1075.70206058,0.00013641,2]
[423757980,1780395041000,-150.99,0.00012893,2]
[423757984,1780395041000,-299.99,0.00012893,2]
[423757981,1780395041000,-4074.31,0.00012893,2]
[423757983,1780395041000,-228.48,0.00012893,2]
[423757982,1780395041000,-235.43,0.00012893,2]
[423757976,1780395041000,-200.0,0.00012678,2]
[423757975,1780395041000,-2013.03768174,0.00012676,2]
[423757978,1780395041000,-449.01347115,0.00012726,2]
[423757977,1780395041000,-184.64,0.00012686,2]
[423757979,1780395041000,-390.4978594,0.0001286,2]
[423758024,1780395041000,-639.74075382,0.00013933,2]
[423757988,1780395041000,-4763.09,0.00012893,2]
[423757987,1780395041000,-9999.99,0.00012893,2]
[423757986,1780395041000,-12748.26,0.00012893,2]
[423757991,1780395041000,-161.84,0.0001298,2]
[423757990,1780395041000,-160.21,0.00012947,2]
[423757994,1780395041000,-152.0,0.00013326,7]
[423757989,1780395041000,-9999.99,0.00012893,2]
[423757992,1780395041000,-575.08,0.00013128,2]
[423757993,1780395041000,-152.0,0.00013219,7]
[423757995,1780395041000,-150.0,0.00013488,2]
[423757997,1780395041000,-150.0,0.0001364,2]
[423758021,1780395041000,-500.0,0.00013933,2]
[423757996,1780395041000,-150.0,0.00013488,2]
[423758028,1780395041000,-500.0,0.00013933,2]
[423758063,1780395041000,-500.0,0.00013933,2]
[423758069,1780395041000,-500.0,0.00013933,2]
[423758070,1780395041000,-500.0,0.00013933,2]
[423758071,1780395041000,-260.50307483,0.00013933,2]
[423758077,1780395041000,-575.1,0.00013959,2]
[423758075,1780395041000,-470.73,0.00013957,2]
[423758081,1780395041000,-9558.64186072,0.00014004,2]
[423758078,1780395041000,-166.66,0.00013973,2]
[423758079,1780395041000,-542.01,0.00013973,2]
[423758076,1780395041000,-474.92,0.00013957,2]
[423758072,1780395041000,-500.0,0.00013933,2]
[423758080,1780395041000,-243.39036483,0.00014,2]
[423758074,1780395041000,-184.98,0.0001395,2]
[423758082,1780395041000,-1705.74678556,0.000141,2]
[423758086,1780395041000,-500.0,0.00014102,2]
[423758089,1780395041000,-16467.35030072,0.00014103,2]
[423758083,1780395041000,-243.39036476,0.000141,2]
[423758084,1780395041000,-28516.6019,0.00014102,2]
[423758085,1780395041000,-500.0,0.00014102,2]
[423758088,1780395041000,-107146.55082831,0.00014103,2]
[423758022,1780395041000,-500.0,0.00013933,2]
[423758087,1780395041000,-500.0,0.00014102,2]
[423758064,1780395041000,-500.0,0.00013933,2]
[423758073,1780395041000,-1680.0,0.00013943,2]
[423758061,1780395041000,-500.0,0.00013933,2]
[423758030,1780395041000,-342.72406063,0.00013933,2]
[423758033,1780395041000,-289.81767642,0.00013933,2]
[423758062,1780395041000,-500.0,0.00013933,2]
[423758035,1780395041000,-500.0,0.00013933,2]
[423758038,1780395041000,-500.0,0.00013933,2]
[423758047,1780395041000,-210.12141826,0.00013933,2]
[423758040,1780395041000,-150.0,0.00013933,2]
[423758044,1780395041000,-500.0,0.00013933,2]
[423758042,1780395041000,-500.0,0.00013933,2]
[423758048,1780395041000,-306.6186348,0.00013933,2]
[423758050,1780395041000,-500.0,0.00013933,2]
[423758037,1780395041000,-500.0,0.00013933,2]
[423758053,1780395041000,-500.0,0.00013933,2]
[423758054,1780395041000,-500.0,0.00013933,2]
[423758057,1780395041000,-500.0,0.00013933,2]
[423758060,1780395041000,-500.0,0.00013933,2]
[423758066,1780395041000,-500.0,0.00013933,2]
[423758065,1780395041000,-500.0,0.00013933,2]
[423758058,1780395041000,-500.0,0.00013933,2]
[423758068,1780395041000,-500.0,0.00013933,2]
[423758067,1780395041000,-500.0,0.00013933,2]
[423758059,1780395041000,-500.0,0.00013933,2]
[423758056,1780395041000,-500.0,0.00013933,2]
[423758091,1780395042000,-7417.70783796,0.00014103,2]
[423758092,1780395042000,-103.63583743,0.00014104,2]
[423758090,1780395042000,-11707.62453301,0.00014103,2]
[423758099,1780395043000,-1122.36416257,0.00014104,2]
[423758100,1780395043000,-487.587,0.00014104,2]
[423758102,1780395043000,-2500.97881698,0.00014104,2]
[423758101,1780395043000,-449.31587267,0.00014104,2]
[423758111,1780395046000,-1039.62505662,0.00013822,2]
[423758112,1780395046000,-1147.07480032,0.00013822,2]
[423758114,1780395046000,-166.66,0.0001411,2]
[423758113,1780395046000,-689.70531035,0.00014104,2]
[423758117,1780395046000,-1052.50598979,0.00014132,2]
[423758115,1780395046000,-518.03619098,0.00014132,2]
[423758116,1780395046000,-283.82629871,0.00014132,2]
[423758118,1780395046000,-470.42998,0.00014132,2]
[423758119,1780395046000,-655.2041005,0.00014132,2]
[423758122,1780395046000,-175.90254929,0.00014189,2]
[423758121,1780395046000,-1103.50330071,0.00014132,2]
[423758128,1780395046000,-5.082899,0.00014202,2]
[423758125,1780395046000,-243.39036476,0.000142,2]
[423758127,1780395046000,-500.0,0.00014202,2]
[423758136,1780395046000,-730.01494258,0.00014224,2]
[423758135,1780395046000,-500.0,0.00014223,2]
[423758134,1780395046000,-500.0,0.00014223,2]
[423758130,1780395046000,-500.0,0.00014202,2]
[423758133,1780395046000,-795.57179587,0.0001422,2]
[423758124,1780395046000,-150.0,0.000142,2]
[423758132,1780395046000,-1498.97,0.00014207,2]
[423758129,1780395046000,-546.367101,0.00014202,2]
[423758126,1780395046000,-500.0,0.00014202,2]
[423758123,1780395046000,-1529.84423624,0.00014189,2]
[423758120,1780395046000,-5475.13600001,0.00014132,2]
[423758131,1780395046000,-513.4,0.00014202,2]
[423758146,1780395341000,-1200.0,0.00012625,2]
[423758147,1780395359000,-150.0,0.00012625,2]
[423758148,1780395394000,-166.27423638,0.00012525,2]
[423758149,1780395412000,-474.17151549,0.00012525,2]
[423758154,1780395562000,9244.69280482,8e-05,2]
[423758157,1780395741000,509.08357602,0.0001,2]
[423758158,1780395784000,-150.0,0.00010998,2]
[423758159,1780395787000,200.0,0.0001,2]
[423758160,1780395838000,-150.19784517,0.00010998,2]
[423758161,1780395858000,400.0,0.0001,2]
[423758162,1780395871000,200.0,0.0001,20]
[423758163,1780395891000,-150.0,0.00010997,2]
[423758164,1780395892000,400.0,0.0001,2]
[423758165,1780395943000,-300.0,0.00010997,2]
[423758173,1780395997000,-1200.0,0.00010997,2]
[423758174,1780396050000,-196.75034628,0.00010997,2]
[423758176,1780396105000,-300.0,0.00010998,2]
[423758177,1780396158000,-300.0,0.00010997,2]
[423758178,1780396211000,-233.02744233,0.00010998,2]
[423758202,1780396233000,-1380.23,0.000132,2]
[423758183,1780396233000,-163.11920963,0.00010997,2]
[423758182,1780396233000,-1200.0,0.00010997,2]
[423758184,1780396233000,-2242.29218919,0.00011,2]
[423758185,1780396233000,-196.75034628,0.00011008,2]
[423758188,1780396233000,-619.12,0.0001241,2]
[423758186,1780396233000,-193.0,0.00012097,2]
[423758203,1780396233000,-33678.0063727,0.00013206,2]
[423758189,1780396233000,-1000.0,0.00012422,2]
[423758194,1780396233000,-150.99,0.00012928,2]
[423758200,1780396233000,-575.1,0.00013135,2]
[423758187,1780396233000,-480.0,0.00012097,2]
[423758190,1780396233000,-151.32,0.00012453,2]
[423758199,1780396233000,-643.75,0.00013128,2]
[423758197,1780396233000,-211.71346283,0.00013071,2]
[423758201,1780396233000,-572.84,0.00013151,2]
[423758191,1780396233000,-677.29,0.00012514,2]
[423758193,1780396233000,-505.28252067,0.00012928,2]
[423758198,1780396233000,-369.86,0.00013119,2]
[423758192,1780396233000,-215.67541492,0.00012763,2]
[423758196,1780396233000,-785.46,0.00012928,2]
[423758195,1780396233000,-9999.99,0.00012928,2]
[423758208,1780396238000,-500.0,0.00010997,2]
[423758207,1780396238000,-516.13842104,0.00010997,2]
[423758214,1780396238000,-500.0,0.00010997,2]
[423758211,1780396238000,-500.0,0.00010997,2]
[423758212,1780396238000,-500.0,0.00010997,2]
[423758210,1780396238000,-500.0,0.00010997,2]
[423758209,1780396238000,-500.0,0.00010997,2]
[423758220,1780396238000,-500.0,0.00010997,2]
[423758215,1780396238000,-500.0,0.00010997,2]
[423758216,1780396238000,-500.0,0.00010997,2]
[423758217,1780396238000,-500.0,0.00010997,2]
[423758218,1780396238000,-500.0,0.00010997,2]
[423758221,1780396238000,-500.0,0.00010997,2]
[423758219,1780396238000,-500.0,0.00010997,2]
[423758222,1780396238000,-5.20525435,0.00010997,2]
[423758213,1780396238000,-500.0,0.00010997,2]
[423758371,1780396240000,-500.0,0.00010997,2]
[423758378,1780396240000,-500.0,0.00010997,2]
[423758370,1780396240000,-494.79474565,0.00010997,2]
[423758372,1780396240000,-500.0,0.00010997,2]
[423758374,1780396240000,-500.0,0.00010997,2]
[423758381,1780396240000,-500.0,0.00010997,2]
[423758376,1780396240000,-500.0,0.00010997,2]
[423758380,1780396240000,-500.0,0.00010997,2]
[423758377,1780396240000,-500.0,0.00010997,2]
[423758375,1780396240000,-500.0,0.00010997,2]
[423758379,1780396240000,-500.0,0.00010997,2]
[423758382,1780396240000,-500.0,0.00010997,2]
[423758383,1780396240000,-4310.75769928,0.00013206,2]
[423758384,1780396240000,-5666.69318122,0.00013206,2]
[423758373,1780396240000,-150.94755507,0.00010997,2]
[423758401,1780396244000,-692.1647197,0.0001346,2]
[423758400,1780396244000,-203.95197032,0.0001345,2]
[423758397,1780396244000,-2400.9305226,0.00013407,2]
[423758396,1780396244000,-1899.3632787,0.00013407,2]
[423758394,1780396244000,-944.53239744,0.00013206,2]
[423758398,1780396244000,-18670.0243458,0.00013407,2]
[423758395,1780396244000,-13379.44684936,0.00013206,2]
[423758404,1780396244000,-150.0,0.00013488,2]
[423758399,1780396244000,-166.8697939,0.00013424,2]
[423758405,1780396244000,-255.40957955,0.00013488,2]
[423758402,1780396244000,-150.0,0.00013488,2]
[423758409,1780396244000,-150.0,0.00013488,2]
[423758403,1780396244000,-151.24972356,0.00013488,2]
[423758415,1780396244000,-6536.49259028,0.00013609,2]
[423758414,1780396244000,-500.0,0.00013589,2]
[423758413,1780396244000,-500.0,0.00013556,2]
[423758407,1780396244000,-150.0,0.00013488,2]
[423758408,1780396244000,-150.63514995,0.00013488,2]
[423758412,1780396244000,-1364.59742846,0.00013509,2]
[423758411,1780396244000,-396.5101403,0.00013509,2]
[423758406,1780396244000,-150.0,0.00013488,2]
[423758410,1780396244000,-150.0,0.00013488,2]
[423758416,1780396244000,-1226.6752831,0.00013612,2]
[423758460,1780396245000,-166.66,0.00013973,2]
[423758454,1780396245000,-396.51014024,0.00013818,2]
[423758456,1780396245000,-166.66,0.00013836,2]
[423758455,1780396245000,-1364.59742842,0.00013818,2]
[423758457,1780396245000,-12217.232792,0.00013845,2]
[423758450,1780396245000,-500.0,0.00013699,2]
[423758452,1780396245000,-500.0,0.00013699,2]
[423758461,1780396245000,-184.98,0.00013973,2]
[423758458,1780396245000,-150.0,0.00013862,2]
[423758451,1780396245000,-500.0,0.00013699,2]
[423758449,1780396245000,-500.0,0.00013699,2]
[423758453,1780396245000,-212.74241152,0.00013701,2]
[423758459,1780396245000,-283.46,0.0001395,2]
[423758466,1780396245000,-151.32,0.00014009,2]
[423758463,1780396245000,-1364.59742842,0.00013973,2]
[423758462,1780396245000,-396.51014024,0.00013973,2]
[423758474,1780396245000,-2000.0,0.000142,2]
[423758464,1780396245000,-250.0,0.00014,2]
[423758465,1780396245000,-2000.0,0.00014,2]
[423758467,1780396245000,-1473.70804207,0.0001409,2]
[423758469,1780396245000,-166.66,0.0001411,2]
[423758470,1780396245000,-396.51014024,0.00014127,2]
[423758471,1780396245000,-1364.59742842,0.00014127,2]
[423758472,1780396245000,-7168.98139556,0.00014182,2]
[423758468,1780396245000,-2000.0,0.000141,2]
[423758446,1780396245000,-500.0,0.00013699,2]
[423758473,1780396245000,-150.0,0.000142,2]
[423758445,1780396245000,-500.0,0.00013699,2]
[423758424,1780396245000,-625.27,0.00013698,2]
[423758437,1780396245000,-500.0,0.00013699,2]
[423758422,1780396245000,-500.0,0.00013698,2]
[423758418,1780396245000,-1364.59742842,0.00013664,2]
[423758417,1780396245000,-396.51014024,0.00013664,2]
[423758419,1780396245000,-500.0,0.00013698,2]
[423758420,1780396245000,-500.0,0.00013698,2]
[423758421,1780396245000,-500.0,0.00013698,2]
[423758423,1780396245000,-500.0,0.00013698,2]